[Event "Titled Tuesday Blitz March 28 Early 2023"]
[White "Novikov, Evgenij"]
[Black "polandchessplayer"]
[WhiteFideId "4125380"]
[WhiteElo "2242"]
[BlackElo "2695"]
[Result "0-1"]
[Round "06"]
[TimeControl "180+2"]
[Date "2023.03.28"]
[WhiteClock "0:00:04"]
[BlackClock "0:00:08"]

1. e4 {[%clk 0:03:00]}  c6 {[%clk 0:02:55]} 2. d4 {[%clk 0:02:57]}  d5 {[%clk 0:02:52]} 3. exd5 {[%clk 0:02:58]}  cxd5 {[%clk 0:02:53]} 4. Bd3 {[%clk 0:02:58]}  Nc6 {[%clk 0:02:50]} 5. c3 {[%clk 0:02:58]}  Nf6 {[%clk 0:02:48]} 6. h3 {[%clk 0:02:55]}  g6 {[%clk 0:02:43]} 7. Qc2 {[%clk 0:02:51]}  Bg7 {[%clk 0:02:43]} 8. Nf3 {[%clk 0:02:49]}  O-O {[%clk 0:02:43]} 9. O-O {[%clk 0:02:49]}  Bd7 {[%clk 0:02:43]} 10. Bf4 {[%clk 0:02:37]}  Rc8 {[%clk 0:02:42]} 11. Qe2 {[%clk 0:02:23]}  Bf5 {[%clk 0:02:37]} 12. Nbd2 {[%clk 0:02:19]}  e6 {[%clk 0:02:35]} 13. Ne5 {[%clk 0:02:11]}  Nxe5 {[%clk 0:02:32]} 14. Bxe5 {[%clk 0:02:10]}  Bxd3 {[%clk 0:02:33]} 15. Qxd3 {[%clk 0:02:09]}  Qb6 {[%clk 0:02:32]} 16. Rab1 {[%clk 0:02:03]}  Nd7 {[%clk 0:02:22]} 17. Bxg7 {[%clk 0:02:03]}  Kxg7 {[%clk 0:02:23]} 18. Nf3 {[%clk 0:01:57]}  Qa6 {[%clk 0:02:18]} 19. Qxa6 {[%clk 0:01:39]}  bxa6 {[%clk 0:02:17]} 20. Rfe1 {[%clk 0:01:39]}  a5 {[%clk 0:02:16]} 21. Rbc1 {[%clk 0:01:30]}  Rb8 {[%clk 0:02:14]} 22. Rc2 {[%clk 0:01:28]}  Rfc8 {[%clk 0:02:13]} 23. Ne5 {[%clk 0:01:22]}  Nxe5 {[%clk 0:02:13]} 24. Rxe5 {[%clk 0:01:23]}  a4 {[%clk 0:02:13]} 25. a3 {[%clk 0:01:23]}  Rb6 {[%clk 0:02:09]} 26. Kf1 {[%clk 0:01:19]}  Kf8 {[%clk 0:02:05]} 27. Ree2 {[%clk 0:01:11]}  Ke8 {[%clk 0:02:06]} 28. Red2 {[%clk 0:01:10]}  Kd7 {[%clk 0:02:06]} 29. Ke2 {[%clk 0:01:10]}  Kc6 {[%clk 0:02:06]} 30. Kd3 {[%clk 0:01:10]}  Kb5 {[%clk 0:02:06]} 31. Re2 {[%clk 0:01:08]}  Ka5 {[%clk 0:02:04]} 32. g4 {[%clk 0:01:05]}  Rcc6 {[%clk 0:01:51]} 33. f4 {[%clk 0:01:05]}  h6 {[%clk 0:01:49]} 34. Rf2 {[%clk 0:01:04]}  Rb8 {[%clk 0:01:43]} 35. Rce2 {[%clk 0:01:04]}  Rg8 {[%clk 0:01:41]} 36. Re5 {[%clk 0:00:54]}  Kb6 {[%clk 0:01:40]} 37. h4 {[%clk 0:00:46]}  Kc7 {[%clk 0:01:37]} 38. g5 {[%clk 0:00:43]}  hxg5 {[%clk 0:01:29]} 39. fxg5 {[%clk 0:00:44]}  Rg7 {[%clk 0:01:30]} 40. Re1 {[%clk 0:00:40]}  Kd6 {[%clk 0:01:26]} 41. Rh1 {[%clk 0:00:35]}  Rh7 {[%clk 0:01:25]} 42. Rf4 {[%clk 0:00:31]}  Rc8 {[%clk 0:01:24]} 43. Rg1 {[%clk 0:00:31]}  Rch8 {[%clk 0:01:24]} 44. Rgg4 {[%clk 0:00:31]}  Rb8 {[%clk 0:01:22]} 45. Kc2 {[%clk 0:00:30]}  Ke7 {[%clk 0:01:20]} 46. Rf3 {[%clk 0:00:29]}  Rbh8 {[%clk 0:01:15]} 47. Rff4 {[%clk 0:00:29]}  Rh5 {[%clk 0:01:14]} 48. Kd3 {[%clk 0:00:29]}  Rc8 {[%clk 0:01:10]} 49. Kc2 {[%clk 0:00:28]}  Rf8 {[%clk 0:01:10]} 50. Kd3 {[%clk 0:00:28]}  f6 {[%clk 0:00:59]} 51. gxf6+ {[%clk 0:00:27]}  Rxf6 {[%clk 0:01:00]} 52. c4 {[%clk 0:00:23]}  dxc4+ {[%clk 0:00:49]} 53. Kxc4 {[%clk 0:00:24]}  Rxf4 {[%clk 0:00:48]} 54. Rxf4 {[%clk 0:00:24]}  Rf5 {[%clk 0:00:49]} 55. Rg4 {[%clk 0:00:22]}  Kf6 {[%clk 0:00:47]} 56. Kb4 {[%clk 0:00:22]}  Rf2 {[%clk 0:00:47]} 57. Kxa4 {[%clk 0:00:20]}  Rxb2 {[%clk 0:00:47]} 58. Ka5 {[%clk 0:00:19]}  Rb3 {[%clk 0:00:44]} 59. a4 {[%clk 0:00:18]}  Ra3 {[%clk 0:00:40]} 60. Kb4 {[%clk 0:00:18]}  Ra1 {[%clk 0:00:40]} 61. Kb5 {[%clk 0:00:17]}  Kf5 {[%clk 0:00:37]} 62. Rg5+ {[%clk 0:00:17]}  Kf6 {[%clk 0:00:38]} 63. Rg4 {[%clk 0:00:16]}  Ra3 {[%clk 0:00:31]} 64. Rf4+ {[%clk 0:00:16]}  Ke7 {[%clk 0:00:31]} 65. a5 {[%clk 0:00:17]}  Kd6 {[%clk 0:00:21]} 66. Rg4 {[%clk 0:00:17]}  Rd3 {[%clk 0:00:16]} 67. Ka6 {[%clk 0:00:16]}  Rh3 {[%clk 0:00:09]} 68. Kxa7 {[%clk 0:00:15]}  Kd5 {[%clk 0:00:10]} 69. a6 {[%clk 0:00:12]}  Kd6 {[%clk 0:00:10]} 70. Ka8 {[%clk 0:00:12]}  Rf3 {[%clk 0:00:06]} 71. a7 {[%clk 0:00:11]}  Kc6 {[%clk 0:00:05]} 72. d5+ {[%clk 0:00:09]}  exd5 {[%clk 0:00:05]} 73. Rb4 {[%clk 0:00:09]}  Rf8+ {[%clk 0:00:06]} 74. Rb8 {[%clk 0:00:09]}  Rf7 {[%clk 0:00:06]} 75. Rc8+ {[%clk 0:00:08]}  Kb6 {[%clk 0:00:07]} 76. Rb8+ {[%clk 0:00:09]}  Ka6 {[%clk 0:00:08]} 77. Rd8 {[%clk 0:00:07]}  Rxa7+ {[%clk 0:00:08]} 78. Kb8 {[%clk 0:00:07]}  Rb7+ {[%clk 0:00:08]} 79. Kc8 {[%clk 0:00:08]}  Rb5 {[%clk 0:00:07]} 80. Rd6+ {[%clk 0:00:08]}  Ka5 {[%clk 0:00:07]} 81. Rxg6 {[%clk 0:00:07]}  d4 {[%clk 0:00:06]} 82. Rd6 {[%clk 0:00:07]}  Rb4 {[%clk 0:00:04]} 83. h5 {[%clk 0:00:07]}  Kb5 {[%clk 0:00:05]} 84. h6 {[%clk 0:00:07]}  Ra4 {[%clk 0:00:05]} 85. h7 {[%clk 0:00:04]}  Kc5 {[%clk 0:00:03]} 86. h8=Q {[%clk 0:00:01]}  Ra8+ {[%clk 0:00:03]} 87. Kb7 {[%clk 0:00:01]}  Rxh8 {[%clk 0:00:04]} 88. Rd7 {[%clk 0:00:01]}  Kc4 {[%clk 0:00:04]} 89. Rc7+ {[%clk 0:00:01]}  Kd3 {[%clk 0:00:04]} 90. Rd7 {[%clk 0:00:02]}  Rh5 {[%clk 0:00:05]} 91. Kc6 {[%clk 0:00:02]}  Ke3 {[%clk 0:00:05]} 92. Re7+ {[%clk 0:00:02]}  Kd2 {[%clk 0:00:06]} 93. Rd7 {[%clk 0:00:03]}  d3 {[%clk 0:00:07]} 94. Rd4 {[%clk 0:00:02]}  Ke2 {[%clk 0:00:07]} 95. Re4+ {[%clk 0:00:03]}  Kd1 {[%clk 0:00:07]} 96. Rd4 {[%clk 0:00:03]}  d2 {[%clk 0:00:08]} 97. Rc4 {[%clk 0:00:03]}  Ke2 {[%clk 0:00:08]} 98. Re4+ {[%clk 0:00:04]}  Kd3 {[%clk 0:00:08]} 0-1


[Site "https://www.chess.com"]

[Event "Titled Tuesday Blitz March 28 Early 2023"]
[White "Salman, Pavel"]
[Black "Jessel, Stephen"]
[WhiteFideId "24153753"]
[BlackFideId "628859"]
[WhiteElo "2187"]
[BlackElo "2268"]
[Result "0-1"]
[Round "06"]
[TimeControl "180+2"]
[Date "2023.03.28"]
[WhiteClock "0:00:13"]
[BlackClock "0:00:09"]

1. d4 {[%clk 0:02:59]}  a6 {[%clk 0:02:58]} 2. Nc3 {[%clk 0:03:00]}  e6 {[%clk 0:02:55]} 3. e4 {[%clk 0:03:00]}  d5 {[%clk 0:02:55]} 4. Bd3 {[%clk 0:02:57]}  Nf6 {[%clk 0:02:50]} 5. Bg5 {[%clk 0:02:55]}  h6 {[%clk 0:02:27]} 6. Bxf6 {[%clk 0:02:55]}  Qxf6 {[%clk 0:02:28]} 7. exd5 {[%clk 0:02:47]}  Bb4 {[%clk 0:02:29]} 8. dxe6 {[%clk 0:02:43]}  Bxe6 {[%clk 0:02:30]} 9. Ne2 {[%clk 0:02:42]}  Nc6 {[%clk 0:02:30]} 10. O-O {[%clk 0:02:38]}  O-O-O {[%clk 0:02:30]} 11. a3 {[%clk 0:02:35]}  Ba5 {[%clk 0:02:21]} 12. Ne4 {[%clk 0:02:31]}  Qh4 {[%clk 0:02:16]} 13. c3 {[%clk 0:02:23]}  Bb6 {[%clk 0:02:13]} 14. b4 {[%clk 0:02:15]}  Rhe8 {[%clk 0:02:06]} 15. b5 {[%clk 0:02:09]}  axb5 {[%clk 0:02:05]} 16. Qb1 {[%clk 0:02:09]}  Bc4 {[%clk 0:02:02]} 17. N2g3 {[%clk 0:01:55]}  g6 {[%clk 0:01:55]} 18. a4 {[%clk 0:01:47]}  Bxd3 {[%clk 0:01:53]} 19. Qxd3 {[%clk 0:01:46]}  b4 {[%clk 0:01:53]} 20. a5 {[%clk 0:01:35]}  Nxa5 {[%clk 0:01:21]} 21. cxb4 {[%clk 0:01:30]}  Rxd4 {[%clk 0:01:16]} 22. Qf3 {[%clk 0:01:30]}  Rxb4 {[%clk 0:01:08]} 23. Nf6 {[%clk 0:01:15]}  Rf4 {[%clk 0:00:57]} 24. Nxe8 {[%clk 0:01:07]}  Rxf3 {[%clk 0:00:56]} 25. gxf3 {[%clk 0:01:08]}  h5 {[%clk 0:00:37]} 26. Rfe1 {[%clk 0:00:58]}  Qd4 {[%clk 0:00:31]} 27. Ra2 {[%clk 0:00:55]}  h4 {[%clk 0:00:24]} 28. Ne4 {[%clk 0:00:54]}  h3 {[%clk 0:00:22]} 29. N8f6 {[%clk 0:00:51]}  Qd3 {[%clk 0:00:10]} 30. Ng5 {[%clk 0:00:37]}  Kb8 {[%clk 0:00:10]} 31. Rae2 {[%clk 0:00:31]}  Qf5 {[%clk 0:00:10]} 32. Nfe4 {[%clk 0:00:20]}  c6 {[%clk 0:00:10]} 33. Rd1 {[%clk 0:00:18]}  Ka7 {[%clk 0:00:10]} 34. Ra1 {[%clk 0:00:18]}  Kb8 {[%clk 0:00:10]} 35. Rd1 {[%clk 0:00:18]}  Kc7 {[%clk 0:00:09]} 36. Rd3 {[%clk 0:00:18]}  Nc4 {[%clk 0:00:07]} 37. Rc2 {[%clk 0:00:13]}  Ne5 {[%clk 0:00:07]} 38. Rcc3 {[%clk 0:00:10]}  Nxd3 {[%clk 0:00:07]} 39. Rxd3 {[%clk 0:00:11]}  Qa5 {[%clk 0:00:07]} 40. Nxh3 {[%clk 0:00:10]}  Qe1+ {[%clk 0:00:06]} 41. Kg2 {[%clk 0:00:11]}  Qb1 {[%clk 0:00:06]} 42. Re3 {[%clk 0:00:11]}  f5 {[%clk 0:00:06]} 43. Re2 {[%clk 0:00:09]}  fxe4 {[%clk 0:00:05]} 44. fxe4 {[%clk 0:00:10]}  Qd3 {[%clk 0:00:05]} 45. Nf4 {[%clk 0:00:10]}  Qd6 {[%clk 0:00:04]} 46. Kf3 {[%clk 0:00:11]}  Qe5 {[%clk 0:00:04]} 47. Nxg6 {[%clk 0:00:10]}  Qh5+ {[%clk 0:00:05]} 48. Kg2 {[%clk 0:00:09]}  Qxg6+ {[%clk 0:00:06]} 49. Kf1 {[%clk 0:00:09]}  Qe6 {[%clk 0:00:06]} 50. f4 {[%clk 0:00:09]}  Bd4 {[%clk 0:00:06]} 51. Kg2 {[%clk 0:00:10]}  Qc4 {[%clk 0:00:07]} 52. Kf3 {[%clk 0:00:10]}  b5 {[%clk 0:00:07]} 53. Rg2 {[%clk 0:00:10]}  Qd3+ {[%clk 0:00:08]} 54. Kg4 {[%clk 0:00:10]}  Qxe4 {[%clk 0:00:09]} 55. h4 {[%clk 0:00:10]}  Be3 {[%clk 0:00:09]} 56. Rg3 {[%clk 0:00:11]}  Qxf4+ {[%clk 0:00:09]} 57. Kh3 {[%clk 0:00:12]}  Bf2 {[%clk 0:00:09]} 58. Rg7+ {[%clk 0:00:12]}  Kb6 {[%clk 0:00:09]} 59. h5 {[%clk 0:00:13]}  Qf3+ {[%clk 0:00:07]} 60. Kh2 {[%clk 0:00:13]}  Bd4 {[%clk 0:00:08]} 61. Rg3 {[%clk 0:00:12]}  Be5 {[%clk 0:00:08]} 62. h6 {[%clk 0:00:12]}  Qxg3+ {[%clk 0:00:08]} 63. Kh1 {[%clk 0:00:13]}  Qh2# {[%clk 0:00:09]} 0-1


[Site "https://www.chess.com"]

[Event "Titled Tuesday Blitz March 28 Early 2023"]
[White "Cuenca Jimenez, Jose Fernando"]
[Black "Shivakumar, Shawnak"]
[WhiteFideId "2255570"]
[BlackFideId "30940192"]
[WhiteElo "2429"]
[BlackElo "2089"]
[Result "0-1"]
[Round "06"]
[TimeControl "180+2"]
[Date "2023.03.28"]
[WhiteClock "0:00:01"]
[BlackClock "0:01:02"]

1. c4 {[%clk 0:03:00]}  e5 {[%clk 0:02:58]} 2. Nc3 {[%clk 0:02:59]}  Nf6 {[%clk 0:02:56]} 3. Nf3 {[%clk 0:03:00]}  e4 {[%clk 0:02:55]} 4. Ng5 {[%clk 0:02:54]}  c6 {[%clk 0:02:55]} 5. Ngxe4 {[%clk 0:02:49]}  Nxe4 {[%clk 0:02:55]} 6. Nxe4 {[%clk 0:02:49]}  d5 {[%clk 0:02:55]} 7. cxd5 {[%clk 0:02:46]}  cxd5 {[%clk 0:02:56]} 8. Nc3 {[%clk 0:02:44]}  d4 {[%clk 0:02:54]} 9. Ne4 {[%clk 0:02:44]}  Nc6 {[%clk 0:02:54]} 10. e3 {[%clk 0:02:32]}  Qd5 {[%clk 0:02:54]} 11. Ng3 {[%clk 0:02:24]}  h5 {[%clk 0:02:52]} 12. e4 {[%clk 0:02:05]}  Qa5 {[%clk 0:02:45]} 13. h4 {[%clk 0:01:38]}  Bd6 {[%clk 0:02:42]} 14. Be2 {[%clk 0:01:17]}  Bxg3 {[%clk 0:02:39]} 15. fxg3 {[%clk 0:01:16]}  Qe5 {[%clk 0:02:35]} 16. O-O {[%clk 0:00:57]}  Qxg3 {[%clk 0:02:27]} 17. d3 {[%clk 0:00:54]}  Qxh4 {[%clk 0:02:26]} 18. Bf4 {[%clk 0:00:54]}  Bg4 {[%clk 0:02:23]} 19. Rc1 {[%clk 0:00:46]}  Bxe2 {[%clk 0:02:21]} 20. Qxe2 {[%clk 0:00:46]}  Qg4 {[%clk 0:02:22]} 21. Qf2 {[%clk 0:00:38]}  h4 {[%clk 0:02:19]} 22. Rc5 {[%clk 0:00:32]}  f6 {[%clk 0:02:16]} 23. Kh1 {[%clk 0:00:30]}  h3 {[%clk 0:02:12]} 24. g3 {[%clk 0:00:29]}  Rd8 {[%clk 0:02:03]} 25. Kh2 {[%clk 0:00:29]}  Qd7 {[%clk 0:01:54]} 26. a3 {[%clk 0:00:27]}  b6 {[%clk 0:01:43]} 27. Rf5 {[%clk 0:00:23]}  Ne7 {[%clk 0:01:41]} 28. g4 {[%clk 0:00:15]}  Nxf5 {[%clk 0:01:42]} 29. gxf5 {[%clk 0:00:16]}  Rc8 {[%clk 0:01:40]} 30. Qf3 {[%clk 0:00:09]}  Rc2+ {[%clk 0:01:38]} 31. Kh1 {[%clk 0:00:09]}  h2 {[%clk 0:01:34]} 32. Qg4 {[%clk 0:00:09]}  Kf8 {[%clk 0:01:31]} 33. Re1 {[%clk 0:00:08]}  Qb5 {[%clk 0:01:24]} 34. Qg3 {[%clk 0:00:07]}  Qxb2 {[%clk 0:01:19]} 35. Bd6+ {[%clk 0:00:07]}  Kg8 {[%clk 0:01:19]} 36. Qg6 {[%clk 0:00:06]}  Rc8 {[%clk 0:01:09]} 37. Bf4 {[%clk 0:00:05]}  Qc3 {[%clk 0:01:06]} 38. Qg3 {[%clk 0:00:04]}  Rh3 {[%clk 0:01:03]} 39. Qf2 {[%clk 0:00:01]}  Rf3 {[%clk 0:01:03]} 40. Qe2 {[%clk 0:00:01]}  Rxf4 {[%clk 0:01:02]} 0-1


[Site "https://www.chess.com"]

[Event "Titled Tuesday Blitz March 28 Early 2023"]
[White "Aveskulov, Valeriy"]
[Black "Goudriaan, Etienne"]
[WhiteFideId "14109743"]
[BlackFideId "1021150"]
[WhiteElo "2552"]
[BlackElo "2318"]
[Result "1-0"]
[Round "06"]
[TimeControl "180+2"]
[Date "2023.03.28"]
[WhiteClock "0:00:21"]
[BlackClock "0:00:17"]

1. e4 {[%clk 0:03:00]}  c6 {[%clk 0:02:59]} 2. Nf3 {[%clk 0:02:59]}  d5 {[%clk 0:02:58]} 3. d3 {[%clk 0:03:00]}  dxe4 {[%clk 0:02:58]} 4. dxe4 {[%clk 0:03:00]}  Qxd1+ {[%clk 0:02:58]} 5. Kxd1 {[%clk 0:03:01]}  Bg4 {[%clk 0:02:49]} 6. Be2 {[%clk 0:03:01]}  Nd7 {[%clk 0:02:49]} 7. Nc3 {[%clk 0:02:59]}  O-O-O {[%clk 0:02:47]} 8. Nd2 {[%clk 0:02:58]}  Bxe2+ {[%clk 0:02:47]} 9. Kxe2 {[%clk 0:02:56]}  g6 {[%clk 0:02:32]} 10. Nc4 {[%clk 0:02:51]}  Bg7 {[%clk 0:02:26]} 11. Bd2 {[%clk 0:02:46]}  Nb6 {[%clk 0:02:26]} 12. Na5 {[%clk 0:02:43]}  Nf6 {[%clk 0:02:24]} 13. Rhd1 {[%clk 0:02:40]}  Ng4 {[%clk 0:02:18]} 14. f3 {[%clk 0:02:38]}  Ne5 {[%clk 0:02:18]} 15. b3 {[%clk 0:02:20]}  h6 {[%clk 0:02:04]} 16. Be1 {[%clk 0:02:19]}  g5 {[%clk 0:02:00]} 17. Rxd8+ {[%clk 0:02:11]}  Rxd8 {[%clk 0:02:00]} 18. Rd1 {[%clk 0:02:11]}  Rxd1 {[%clk 0:01:59]} 19. Nxd1 {[%clk 0:02:12]}  Ng6 {[%clk 0:01:59]} 20. g3 {[%clk 0:02:10]}  e6 {[%clk 0:01:57]} 21. Ne3 {[%clk 0:02:08]}  Nd7 {[%clk 0:01:38]} 22. Bb4 {[%clk 0:02:01]}  Bd4 {[%clk 0:01:33]} 23. Nec4 {[%clk 0:01:58]}  c5 {[%clk 0:01:18]} 24. Bd2 {[%clk 0:01:47]}  Kc7 {[%clk 0:01:16]} 25. Ne3 {[%clk 0:01:39]}  Nde5 {[%clk 0:01:11]} 26. a4 {[%clk 0:01:34]}  b6 {[%clk 0:01:08]} 27. Nac4 {[%clk 0:01:34]}  Nxc4 {[%clk 0:01:09]} 28. Nxc4 {[%clk 0:01:35]}  Bg1 {[%clk 0:01:09]} 29. Kf1 {[%clk 0:01:29]}  Bd4 {[%clk 0:01:09]} 30. Ke2 {[%clk 0:01:18]}  f5 {[%clk 0:01:08]} 31. exf5 {[%clk 0:00:52]}  exf5 {[%clk 0:01:09]} 32. g4 {[%clk 0:00:53]}  fxg4 {[%clk 0:00:55]} 33. fxg4 {[%clk 0:00:48]}  Be5 {[%clk 0:00:48]} 34. h3 {[%clk 0:00:45]}  Kc6 {[%clk 0:00:46]} 35. Kf3 {[%clk 0:00:40]}  Kd5 {[%clk 0:00:42]} 36. Ne3+ {[%clk 0:00:40]}  Ke6 {[%clk 0:00:42]} 37. Nf5 {[%clk 0:00:38]}  Bf4 {[%clk 0:00:34]} 38. Bc3 {[%clk 0:00:18]}  Be5 {[%clk 0:00:34]} 39. Bd2 {[%clk 0:00:15]}  Bf4 {[%clk 0:00:32]} 40. Be1 {[%clk 0:00:13]}  Ne5+ {[%clk 0:00:31]} 41. Ke4 {[%clk 0:00:13]}  Nf7 {[%clk 0:00:32]} 42. h4 {[%clk 0:00:13]}  Be5 {[%clk 0:00:26]} 43. h5 {[%clk 0:00:12]}  Nd6+ {[%clk 0:00:21]} 44. Nxd6 {[%clk 0:00:12]}  Bxd6 {[%clk 0:00:21]} 45. Bc3 {[%clk 0:00:12]}  Bf8 {[%clk 0:00:22]} 46. Be5 {[%clk 0:00:12]}  a6 {[%clk 0:00:21]} 47. c4 {[%clk 0:00:12]}  Kd7 {[%clk 0:00:09]} 48. Kd5 {[%clk 0:00:11]}  Be7 {[%clk 0:00:08]} 49. Bg7 {[%clk 0:00:10]}  Bd8 {[%clk 0:00:09]} 50. Bxh6 {[%clk 0:00:10]}  Bf6 {[%clk 0:00:09]} 51. Bf8 {[%clk 0:00:10]}  Bh8 {[%clk 0:00:08]} 52. h6 {[%clk 0:00:09]}  Ke8 {[%clk 0:00:07]} 53. Bg7 {[%clk 0:00:10]}  Bxg7 {[%clk 0:00:07]} 54. hxg7 {[%clk 0:00:10]}  Kf7 {[%clk 0:00:08]} 55. Kc6 {[%clk 0:00:11]}  Kxg7 {[%clk 0:00:09]} 56. Kxb6 {[%clk 0:00:12]}  Kf6 {[%clk 0:00:10]} 57. Kxa6 {[%clk 0:00:12]}  Ke5 {[%clk 0:00:11]} 58. a5 {[%clk 0:00:12]}  Kf4 {[%clk 0:00:11]} 59. Kb5 {[%clk 0:00:13]}  Kxg4 {[%clk 0:00:12]} 60. a6 {[%clk 0:00:14]}  Kf3 {[%clk 0:00:13]} 61. a7 {[%clk 0:00:15]}  g4 {[%clk 0:00:13]} 62. a8=Q+ {[%clk 0:00:16]}  Kf2 {[%clk 0:00:14]} 63. Qf8+ {[%clk 0:00:16]}  Kg2 {[%clk 0:00:14]} 64. Qg7 {[%clk 0:00:17]}  g3 {[%clk 0:00:14]} 65. Kxc5 {[%clk 0:00:18]}  Kf2 {[%clk 0:00:15]} 66. b4 {[%clk 0:00:19]}  g2 {[%clk 0:00:15]} 67. b5 {[%clk 0:00:19]}  g1=Q {[%clk 0:00:16]} 68. Qxg1+ {[%clk 0:00:20]}  Kxg1 {[%clk 0:00:17]} 69. b6 {[%clk 0:00:21]} 1-0


[Site "https://www.chess.com"]

[Event "Titled Tuesday Blitz March 28 Early 2023"]
[White "Vaglio Munoz, Jaime"]
[Black "Delorme, Alban"]
[WhiteFideId "6500145"]
[BlackFideId "623636"]
[WhiteElo "2199"]
[BlackElo "2196"]
[Result "0-1"]
[Round "06"]
[TimeControl "180+2"]
[Date "2023.03.28"]
[WhiteClock "0:00:01"]
[BlackClock "0:00:22"]

1. Nf3 {[%clk 0:03:00]}  Nf6 {[%clk 0:02:59]} 2. c4 {[%clk 0:02:59]}  g6 {[%clk 0:02:59]} 3. b3 {[%clk 0:02:59]}  Bg7 {[%clk 0:03:00]} 4. Bb2 {[%clk 0:02:59]}  O-O {[%clk 0:03:00]} 5. g3 {[%clk 0:02:59]}  d6 {[%clk 0:02:59]} 6. d4 {[%clk 0:02:59]}  c5 {[%clk 0:03:00]} 7. dxc5 {[%clk 0:02:58]}  dxc5 {[%clk 0:03:01]} 8. Qxd8 {[%clk 0:02:57]}  Rxd8 {[%clk 0:03:02]} 9. Bg2 {[%clk 0:02:56]}  Nc6 {[%clk 0:03:02]} 10. O-O {[%clk 0:02:46]}  Bf5 {[%clk 0:02:51]} 11. Nbd2 {[%clk 0:02:38]}  Ne4 {[%clk 0:02:49]} 12. Nxe4 {[%clk 0:02:37]}  Bxe4 {[%clk 0:02:34]} 13. Bxg7 {[%clk 0:02:35]}  Kxg7 {[%clk 0:02:34]} 14. Rfd1 {[%clk 0:02:32]}  e6 {[%clk 0:02:30]} 15. h4 {[%clk 0:02:25]}  b6 {[%clk 0:02:28]} 16. Kf1 {[%clk 0:02:21]}  Rac8 {[%clk 0:02:16]} 17. e3 {[%clk 0:02:00]}  Nb4 {[%clk 0:02:06]} 18. Nd2 {[%clk 0:01:32]}  Bxg2+ {[%clk 0:01:57]} 19. Kxg2 {[%clk 0:01:32]}  Rc7 {[%clk 0:01:42]} 20. Ne4 {[%clk 0:01:26]}  Rxd1 {[%clk 0:01:40]} 21. Rxd1 {[%clk 0:01:24]}  Nxa2 {[%clk 0:01:41]} 22. Kf3 {[%clk 0:01:17]}  Nb4 {[%clk 0:01:25]} 23. g4 {[%clk 0:01:16]}  Nc6 {[%clk 0:01:24]} 24. Nd6 {[%clk 0:01:14]}  Kf8 {[%clk 0:01:04]} 25. Nb5 {[%clk 0:01:10]}  Rc8 {[%clk 0:01:01]} 26. Rd7 {[%clk 0:01:08]}  Ne5+ {[%clk 0:00:58]} 27. Kg3 {[%clk 0:01:07]}  Nxd7 {[%clk 0:00:59]} 28. Nxa7 {[%clk 0:01:05]}  Ra8 {[%clk 0:00:54]} 29. Nb5 {[%clk 0:01:03]}  Ke7 {[%clk 0:00:53]} 30. Kf4 {[%clk 0:01:01]}  Ra2 {[%clk 0:00:50]} 31. f3 {[%clk 0:01:01]}  Rb2 {[%clk 0:00:50]} 32. h5 {[%clk 0:01:00]}  Rxb3 {[%clk 0:00:50]} 33. h6 {[%clk 0:00:58]}  Rb4 {[%clk 0:00:48]} 34. Na3 {[%clk 0:00:56]}  Ra4 {[%clk 0:00:48]} 35. Nb1 {[%clk 0:00:55]}  Rxc4+ {[%clk 0:00:49]} 36. e4 {[%clk 0:00:53]}  e5+ {[%clk 0:00:49]} 37. Kg5 {[%clk 0:00:53]}  f5 {[%clk 0:00:49]} 38. exf5 {[%clk 0:00:38]}  gxf5 {[%clk 0:00:47]} 39. Nd2 {[%clk 0:00:25]}  Rd4 {[%clk 0:00:44]} 40. Nb3 {[%clk 0:00:23]}  fxg4 {[%clk 0:00:44]} 41. fxg4 {[%clk 0:00:21]}  Nf6 {[%clk 0:00:42]} 42. Kf5 {[%clk 0:00:18]}  Rxg4 {[%clk 0:00:39]} 43. Kxe5 {[%clk 0:00:18]}  Rg5+ {[%clk 0:00:35]} 44. Kf4 {[%clk 0:00:17]}  Rh5 {[%clk 0:00:35]} 45. Nd2 {[%clk 0:00:16]}  Rxh6 {[%clk 0:00:36]} 46. Nf3 {[%clk 0:00:16]}  Nd7 {[%clk 0:00:34]} 47. Ke4 {[%clk 0:00:15]}  Re6+ {[%clk 0:00:34]} 48. Kd5 {[%clk 0:00:15]}  Nf6+ {[%clk 0:00:32]} 49. Kc4 {[%clk 0:00:14]}  Re4+ {[%clk 0:00:32]} 50. Kb5 {[%clk 0:00:11]}  c4 {[%clk 0:00:31]} 51. Kb4 {[%clk 0:00:10]}  c3+ {[%clk 0:00:31]} 52. Kb3 {[%clk 0:00:09]}  Re3 {[%clk 0:00:30]} 53. Nd4 {[%clk 0:00:06]}  Kf7 {[%clk 0:00:25]} 54. Nf5 {[%clk 0:00:05]}  Rf3 {[%clk 0:00:22]} 55. Nd4 {[%clk 0:00:03]}  Rd3 {[%clk 0:00:22]} 56. Nf5 {[%clk 0:00:01]}  h5 {[%clk 0:00:22]} 0-1


[Site "https://www.chess.com"]

[Event "Titled Tuesday Blitz March 28 Early 2023"]
[White "Malek, Jan"]
[Black "Shapiro, Viktor"]
[WhiteFideId "21864080"]
[BlackFideId "4175700"]
[WhiteElo "2255"]
[BlackElo "2152"]
[Result "0-1"]
[Round "06"]
[TimeControl "180+2"]
[Date "2023.03.28"]
[WhiteClock "0:00:04"]
[BlackClock "0:00:08"]

1. c4 {[%clk 0:03:00]}  c5 {[%clk 0:02:58]} 2. Nf3 {[%clk 0:02:59]}  Nc6 {[%clk 0:02:58]} 3. b3 {[%clk 0:02:58]}  Nf6 {[%clk 0:02:57]} 4. Bb2 {[%clk 0:02:58]}  e6 {[%clk 0:02:56]} 5. g3 {[%clk 0:02:56]}  Be7 {[%clk 0:02:56]} 6. Bg2 {[%clk 0:02:55]}  O-O {[%clk 0:02:56]} 7. O-O {[%clk 0:02:55]}  a6 {[%clk 0:02:56]} 8. d4 {[%clk 0:02:55]}  d6 {[%clk 0:02:55]} 9. Nc3 {[%clk 0:02:53]}  cxd4 {[%clk 0:02:54]} 10. Nxd4 {[%clk 0:02:54]}  Bd7 {[%clk 0:02:55]} 11. e4 {[%clk 0:02:51]}  Rc8 {[%clk 0:02:54]} 12. Rc1 {[%clk 0:02:49]}  Qa5 {[%clk 0:02:54]} 13. a4 {[%clk 0:02:47]}  Rfd8 {[%clk 0:02:47]} 14. Nc2 {[%clk 0:02:46]}  Ne5 {[%clk 0:02:40]} 15. Qe2 {[%clk 0:02:44]}  Qb6 {[%clk 0:02:38]} 16. Nd4 {[%clk 0:02:23]}  Bf8 {[%clk 0:02:06]} 17. Rfd1 {[%clk 0:02:22]}  h5 {[%clk 0:02:02]} 18. h3 {[%clk 0:02:18]}  h4 {[%clk 0:01:54]} 19. g4 {[%clk 0:02:17]}  Ng6 {[%clk 0:01:53]} 20. Qe3 {[%clk 0:02:15]}  e5 {[%clk 0:01:47]} 21. Nf5 {[%clk 0:02:04]}  Qxb3 {[%clk 0:01:46]} 22. Ba1 {[%clk 0:01:46]}  Be6 {[%clk 0:01:39]} 23. Bf1 {[%clk 0:01:13]}  Bxc4 {[%clk 0:01:33]} 24. Rb1 {[%clk 0:01:04]}  Qa3 {[%clk 0:01:27]} 25. Rxb7 {[%clk 0:00:48]}  Bxf1 {[%clk 0:01:26]} 26. Kxf1 {[%clk 0:00:49]}  Nf4 {[%clk 0:01:22]} 27. Nxh4 {[%clk 0:00:26]}  Rc4 {[%clk 0:00:58]} 28. Nf5 {[%clk 0:00:23]}  Rdc8 {[%clk 0:00:39]} 29. Bb2 {[%clk 0:00:09]}  Qc5 {[%clk 0:00:31]} 30. Qxc5 {[%clk 0:00:07]}  R8xc5 {[%clk 0:00:31]} 31. Ne3 {[%clk 0:00:07]}  Rxc3 {[%clk 0:00:31]} 32. Bxc3 {[%clk 0:00:07]}  Rxc3 {[%clk 0:00:31]} 33. Rb4 {[%clk 0:00:02]}  Nxh3 {[%clk 0:00:28]} 34. Rb8 {[%clk 0:00:01]}  Nxe4 {[%clk 0:00:23]} 35. Nd5 {[%clk 0:00:02]}  Rc2 {[%clk 0:00:14]} 36. Ne7+ {[%clk 0:00:03]}  Kh7 {[%clk 0:00:14]} 37. Rxf8 {[%clk 0:00:03]}  Rxf2+ {[%clk 0:00:14]} 38. Ke1 {[%clk 0:00:04]}  Nc3 {[%clk 0:00:12]} 39. Rd2 {[%clk 0:00:02]}  Rf3 {[%clk 0:00:11]} 40. Rh2 {[%clk 0:00:02]}  g6 {[%clk 0:00:08]} 41. Nd5 {[%clk 0:00:02]}  Nxd5 {[%clk 0:00:08]} 42. Rxh3+ {[%clk 0:00:01]}  Rxh3 {[%clk 0:00:08]} 43. Rxf7+ {[%clk 0:00:02]}  Kh6 {[%clk 0:00:08]} 44. Rd7 {[%clk 0:00:03]}  Nf4 {[%clk 0:00:08]} 45. Rxd6 {[%clk 0:00:03]}  Re3+ {[%clk 0:00:08]} 46. Kf2 {[%clk 0:00:02]}  Re2+ {[%clk 0:00:08]} 47. Kf3 {[%clk 0:00:03]}  Kg5 {[%clk 0:00:08]} 48. Rxa6 {[%clk 0:00:04]}  e4+ {[%clk 0:00:07]} 49. Kg3 {[%clk 0:00:04]}  Rg2# {[%clk 0:00:08]} 0-1


[Site "https://www.chess.com"]